bitfinex/quotes_BTCUSD_20260315
["timestamp","ask_amount","ask_price","bid_price","bid_amount"]
[1773616127144,0.17892559,72972.0,72937.0,0.06861174]
[1773616127470,0.17892559,72972.0,72937.0,0.06871779]
[1773616128110,0.13812,72971.0,72937.0,0.06871779]
[1773616128305,0.13812,72971.0,72935.0,0.06855231]
[1773616128306,0.17892559,72970.0,72935.0,0.06855231]
[1773616128485,0.17892559,72970.0,72931.0,0.06877759]
[1773616128486,0.17903156,72970.0,72931.0,0.06877759]
[1773616128896,0.17892559,72968.0,72931.0,0.06877759]
[1773616129102,0.17892559,72966.0,72931.0,0.00022]
[1773616129518,0.17892559,72966.0,72918.0,0.33209099]
[1773616129519,0.17892559,72966.0,72894.0,0.03234816]
[1773616129688,0.06852412,72967.0,72900.0,0.06863636]
[1773616129689,0.57132322,72938.0,72900.0,0.06863636]
[1773616129889,0.18228,72937.0,72900.0,0.06863636]
[1773616130322,0.18228,72937.0,72900.0,0.06853636]
[1773616130551,0.17892559,72936.0,72900.0,0.06843636]
[1773616130691,0.17892559,72936.0,72900.0,0.06858636]
[1773616130889,0.17892559,72936.0,72900.0,0.06894031]
[1773616131091,0.24747978,72935.0,72900.0,0.06894031]
[1773616131291,0.17892559,72934.0,72900.0,0.06894031]
[1773616131604,0.00014676,72933.0,72900.0,0.06894031]
[1773616131802,0.17907235,72933.0,72900.0,0.06894031]
[1773616132842,0.1623905,72968.0,72900.0,0.06894031]
[1773616132843,0.06855778,72985.0,72972.0,0.33392518]
[1773616133162,0.06855778,72985.0,72930.0,0.33392518]
[1773616133163,0.06851137,72981.0,72943.0,0.06854667]
[1773616133299,0.00144,72978.0,72943.0,0.06854667]
[1773616133900,0.06850833,72984.0,72943.0,0.06854667]
[1773616134112,0.00144,72983.0,72943.0,0.06854667]
[1773616134312,0.17912545,72982.0,72943.0,0.06854667]
[1773616134715,0.771662,72981.0,72937.0,0.06855159]
[1773616134953,0.47985,72979.0,72937.0,0.06855159]
[1773616135156,0.15,72970.0,72928.0,0.06856071]
[1773616135379,0.17912545,72968.0,72928.0,0.05856071]
[1773616136317,0.06851473,72977.0,72929.0,0.602107]
[1773616136568,0.002,72968.0,72929.0,0.00144]
[1773616136767,0.00144,72967.0,72929.0,0.00144]
[1773616137174,0.00144,72967.0,72931.0,0.34253833]
[1773616137468,0.00144,72966.0,72943.0,0.00022]
[1773616138376,0.06852318,72969.0,72943.0,0.00022]
[1773616138377,5e-05,72953.0,72943.0,0.00017]
[1773616138554,0.00144,72952.0,72943.0,0.00017]
[1773616138731,5e-05,72954.0,72943.0,0.00017]
[1773616139072,0.00144,72953.0,72943.0,0.00017]
[1773616139246,0.00144,72952.0,72943.0,0.00017]
[1773616139455,0.06850661,72986.0,72943.0,0.00017]
[1773616139456,0.06872088,73024.0,72948.0,5e-05]
[1773616139654,0.06872088,73024.0,72998.0,0.025995]
[1773616139655,0.00015599,73001.0,72998.0,0.025995]
[1773616139976,0.17912545,73018.0,73001.0,0.02583901]
[1773616140199,0.0014,73000.0,72979.0,0.0014]
[1773616140385,0.0014,73000.0,72979.0,0.00150599]
[1773616140894,5e-05,73017.0,72979.0,0.00150599]
[1773616141099,0.31753545,73036.0,72979.0,0.00150599]
[1773616141100,0.31929,73036.0,72980.0,0.19096928]
[1773616141390,0.06847157,73023.0,72982.0,0.43511647]
[1773616142034,0.17912545,73022.0,72982.0,0.43511647]
[1773616142444,0.17912545,73020.0,72982.0,0.06851004]
[1773616142656,0.39600523,73019.0,72982.0,0.06851004]
[1773616143132,0.17912545,73018.0,72982.0,0.06851004]
[1773616143286,0.0684772,73017.0,72979.0,0.00010599]
[1773616143482,0.24760265,73018.0,72982.0,0.001]
[1773616143854,0.32834648,73094.0,72980.0,0.0014]
[1773616143855,0.00136,73017.0,72980.0,0.0014]
[1773616144132,0.06872155,73024.0,72983.0,1.112774]
[1773616144133,0.00025,73024.0,72983.0,1.112774]
[1773616144284,0.00025,73024.0,72987.0,1.350892]
[1773616144480,7.731e-05,73024.0,72988.0,0.0014]
[1773616144685,0.0002,73023.0,72990.0,0.13502804]
[1773616145030,0.0002,73033.0,72992.0,0.14267]
[1773616145031,0.00132,73030.0,72992.0,0.14267]
[1773616145293,0.00132,73030.0,72994.0,0.06849878]
[1773616145761,0.00025,73031.0,72996.0,0.19096928]
[1773616145967,0.00128,73029.0,72996.0,0.100083]
[1773616146177,0.00128,73029.0,72995.0,0.0014]
[1773616146847,0.00128,73029.0,72996.0,0.160604]
[1773616147255,0.00128,73029.0,72996.0,0.100084]
[1773616147380,7.731e-05,73031.0,72997.0,0.06849596]
[1773616147581,7.731e-05,73031.0,72998.0,0.163836]
[1773616147788,7.731e-05,73031.0,72997.0,0.06849596]
[1773616147789,0.00135731,73031.0,72999.0,0.0014]
[1773616147992,0.00135731,73031.0,72999.0,0.01382804]
[1773616148731,0.00132,73030.0,73000.0,0.0014]
[1773616148929,0.00132,73030.0,73001.0,0.0014]
[1773616149183,0.0002,73033.0,73001.0,0.0014]
[1773616149378,0.0684619,73034.0,73002.0,0.0014]
[1773616149539,0.06978093,73035.0,73002.0,0.0014]
[1773616150098,0.0701347,73035.0,73002.0,0.0014]
[1773616150305,0.17912545,73034.0,73001.0,0.06949221]
[1773616150515,0.17912545,73034.0,73001.0,0.07803668]
[1773616150695,0.17912545,73034.0,73002.0,0.001]
[1773616151102,0.17912545,73034.0,73001.0,0.07803668]
[1773616151303,0.0684622,73033.0,73001.0,0.07803668]
[1773616151530,0.17912545,73032.0,73001.0,0.07803668]
[1773616151734,0.17912545,73032.0,73001.0,0.07703668]
[1773616151894,0.17912545,73032.0,72992.0,0.00084046]
[1773616152101,0.17912545,73029.0,72992.0,0.00084046]
[1773616152300,0.17912545,73027.0,72992.0,0.00084046]
[1773616152706,0.00136,73026.0,72992.0,0.00084046]
[1773616152941,0.17912545,73025.0,72983.0,0.06850864]
[1773616153351,0.17912545,73023.0,72983.0,0.06850864]
[1773616153559,0.17912545,73023.0,72982.0,0.0685091]
[1773616154642,0.15,73020.0,72978.0,0.06851341]
[1773616154848,0.15,73020.0,72977.0,0.06851285]
[1773616154849,0.17912545,73017.0,72977.0,0.06851285]
[1773616155054,0.00136,73016.0,72977.0,0.06851285]
[1773616155262,0.17912545,73015.0,72972.0,0.06851926]
[1773616155476,0.17912545,73015.0,72970.0,0.00149]
[1773616155477,0.514719,73011.0,72970.0,5e-05]
[1773616155721,0.89088,73007.0,72970.0,5e-05]
[1773616155904,0.06848095,73013.0,72965.0,0.0003]
[1773616155905,0.17912545,73003.0,72965.0,0.0003]
[1773616156112,0.17912545,73001.0,72965.0,0.0003]
[1773616156323,1.184262,73002.0,72960.0,0.06858066]
[1773616156324,0.59778,72998.0,72960.0,5e-05]
[1773616156543,0.17912545,72995.0,72955.0,5e-05]
[1773616156721,0.17912545,72987.0,72970.0,5e-05]
[1773616156970,0.17912545,72985.0,72948.0,0.0685914]
[1773616157186,0.17912545,72985.0,72950.0,0.06858968]
[1773616157400,0.17912545,72985.0,72950.0,5e-05]
[1773616157625,0.06850816,72984.0,72950.0,5e-05]
[1773616157837,0.456001,72979.0,72948.0,5e-05]
[1773616158065,0.18052545,72978.0,72945.0,5e-05]
[1773616158283,0.17912545,72976.0,72945.0,5e-05]
[1773616158887,0.17912545,72976.0,72950.0,5e-05]
[1773616159322,0.17912545,72976.0,72940.0,5e-05]
[1773616159520,0.18012545,72976.0,72939.0,0.06854975]
[1773616159675,0.17912545,72974.0,72939.0,0.06854975]
[1773616159877,0.17912545,72974.0,72947.0,5.5e-05]
[1773616160447,0.17912545,72974.0,72940.0,0.00022]
[1773616161198,0.17912545,72974.0,72940.0,0.00166]
[1773616161907,0.06851849,72973.0,72941.0,0.06854855]
[1773616162093,0.0014,72978.0,72941.0,0.06854855]
[1773616162094,0.0014,72972.0,72941.0,0.06854855]
[1773616162303,0.46451058,72988.0,72942.0,0.750461]
[1773616162513,0.0014,72982.0,72943.0,0.18376489]
[1773616162715,0.46451058,72988.0,72943.0,0.18376489]
[1773616162716,0.0014,72981.0,72943.0,0.18376489]
[1773616163115,5e-05,72963.0,72943.0,0.18376489]
[1773616163675,5e-05,72963.0,72944.0,0.00144]
[1773616164411,5e-05,72963.0,72945.0,0.06854479]
[1773616165342,5e-05,72972.0,72945.0,0.25230968]
[1773616165549,5e-05,72972.0,72946.0,0.00144]
[1773616165884,5e-05,72972.0,72945.0,0.06854479]
[1773616166081,5e-05,72972.0,72948.0,0.06854197]
[1773616166599,5e-05,72972.0,72940.0,0.00027]
[1773616166600,5e-05,72972.0,72937.0,0.06883137]
[1773616166769,5e-05,72972.0,72939.0,0.06854949]
[1773616166770,0.18281383,72971.0,72939.0,0.06854949]
[1773616167216,0.18281383,72971.0,72938.0,0.06854949]
[1773616168237,0.06852131,72970.0,72938.0,0.06854949]
[1773616168436,0.06852131,72970.0,72939.0,0.00144]
[1773616169527,5e-05,72972.0,72940.0,0.16898883]
[1773616169694,5e-05,72972.0,72941.0,0.18376489]
[1773616169695,0.001,72970.0,72941.0,0.18376489]
[1773616170058,0.001,72970.0,72939.0,0.00144]
[1773616170297,0.06852224,72969.0,72940.0,0.06854949]
[1773616170453,0.06852224,72969.0,72941.0,0.00144]
[1773616172287,0.06851686,72975.0,72950.0,0.16898883]
[1773616172401,0.06851686,72975.0,72943.0,0.25231156]
[1773616172607,0.06851686,72975.0,72944.0,0.00144]
[1773616172910,0.06851686,72975.0,72946.0,0.18376489]
[1773616174961,0.06856244,72980.0,72947.0,0.06854291]
[1773616175645,0.18281383,72979.0,72947.0,0.06854291]
[1773616176220,0.18281383,72979.0,72942.0,0.06854761]
[1773616176859,0.06851379,72978.0,72942.0,0.06854761]
[1773616177258,0.18281383,72977.0,72942.0,0.06854761]
[1773616177435,0.18281383,72977.0,72942.0,0.06998761]
[1773616177645,0.18281383,72977.0,72942.0,0.06854761]
[1773616178771,0.18381383,72977.0,72942.0,0.06854761]
[1773616178993,0.18281383,72975.0,72942.0,0.06854761]
[1773616179245,0.18281383,72975.0,72941.0,0.06876782]
[1773616179841,0.18281383,72975.0,72941.0,0.06876794]
[1773616180297,0.18281383,72975.0,72942.0,0.001]
[1773616180714,0.29391,72973.0,72942.0,0.001]
[1773616181000,0.29391,72973.0,72941.0,0.00022]
[1773616181001,0.18281383,72969.0,72941.0,0.00022]
[1773616181198,0.18281383,72969.0,72937.0,0.00028]
[1773616181815,0.18281383,72969.0,72935.0,0.00027]
[1773616181999,0.18281383,72969.0,72926.0,0.00022]
[1773616182000,0.18281383,72957.0,72926.0,0.00012001]
[1773616182200,0.42726769,72959.0,72926.0,0.00012001]
[1773616182201,0.18281383,72954.0,72926.0,0.00012001]
[1773616182640,0.0014,72956.0,72927.0,0.06856171]
[1773616183173,0.06853539,72955.0,72927.0,0.06866779]
[1773616184662,0.18281383,72954.0,72927.0,0.00010608]
[1773616184867,0.06853539,72955.0,72927.0,0.00010608]
[1773616185046,0.18281383,72954.0,72927.0,0.00010608]
[1773616187053,0.06853727,72953.0,72927.0,0.00010608]
[1773616187260,0.18281383,72952.0,72927.0,0.00010608]
[1773616187659,0.18281383,72952.0,72926.0,6.001e-05]
[1773616188083,0.0014,72951.0,72926.0,6.001e-05]
[1773616188991,0.0014,72950.0,72926.0,6.001e-05]
[1773616189150,0.06854103,72949.0,72926.0,6.001e-05]
[1773616189351,0.06854103,72949.0,72927.0,0.00022]
[1773616189591,0.06854103,72949.0,72927.0,5.922e-05]
[1773616190157,0.06954103,72949.0,72927.0,5.922e-05]
[1773616190573,0.06854103,72949.0,72927.0,5.922e-05]
[1773616191375,0.06954103,72949.0,72927.0,5.922e-05]
[1773616191577,0.18281383,72948.0,72927.0,5.922e-05]
[1773616191977,0.1442,72947.0,72927.0,5.922e-05]
[1773616192254,0.18281383,72948.0,72927.0,5.922e-05]
[1773616192793,0.18281383,72948.0,72920.0,0.06861829]
[1773616193004,0.18281383,72948.0,72920.0,0.06897224]
[1773616193208,0.06854291,72947.0,72920.0,0.06897224]
[1773616193734,0.06854291,72947.0,72920.0,0.06892224]
[1773616193936,0.06854291,72947.0,72921.0,0.17829536]
[1773616194348,0.0014,72946.0,72922.0,0.0014]
[1773616194548,0.0014,72946.0,72920.0,0.06892224]
[1773616195546,0.06354479,72945.0,72920.0,0.06892224]
[1773616195866,0.06354479,72945.0,72920.0,0.07032224]
[1773616197829,0.0014,72945.0,72931.0,0.34761524]
[1773616198012,0.0014,72945.0,72931.0,0.34745448]
[1773616199366,0.0014,72945.0,72931.0,0.34729367]
[1773616199566,0.0014,72945.0,72931.0,0.34713288]
[1773616199805,0.06854573,72944.0,72925.0,5e-05]
[1773616200388,0.06854573,72944.0,72922.0,0.0014]
[1773616200971,0.06854573,72944.0,72920.0,0.06919224]
[1773616201184,0.06854573,72944.0,72921.0,0.0124811]
[1773616201393,0.06854573,72944.0,72920.0,0.06914224]
[1773616201394,0.06854573,72944.0,72922.0,0.0124811]
[1773616201599,0.06854573,72944.0,72923.0,0.0124811]
[1773616201889,0.06854573,72944.0,72925.0,0.06856359]
[1773616202049,0.06854573,72944.0,72926.0,0.0124811]
[1773616203480,0.06854573,72944.0,72926.0,0.0129465]
[1773616203654,0.06854573,72944.0,72927.0,0.0124811]
[1773616203862,0.06853766,72953.0,72929.0,0.06855983]
[1773616204038,0.06853766,72953.0,72931.0,0.34483492]
[1773616204242,0.06853766,72953.0,72931.0,0.34530032]
[1773616204444,0.06853766,72953.0,72926.0,0.06855983]
[1773616204445,0.18762938,72943.0,72910.0,0.0004871]
[1773616204646,0.18762938,72943.0,72900.0,5e-05]
[1773616204647,0.1442,72939.0,72900.0,5e-05]
[1773616204852,0.18762938,72929.0,72895.0,0.06290147]
[1773616205047,0.56765481,72937.0,72895.0,0.06290147]
[1773616205048,0.18762938,72927.0,72895.0,0.06290147]
[1773616205249,0.0014,72926.0,72895.0,0.06290147]
[1773616205700,0.18762938,72925.0,72895.0,0.06290147]
[1773616206043,0.06856453,72924.0,72895.0,0.0014]
[1773616206481,0.06856453,72925.0,72901.0,0.17829536]
[1773616206679,0.06856453,72925.0,72902.0,0.37187111]
[1773616207082,0.06856453,72925.0,72902.0,0.55140569]
[1773616207289,0.32895926,72958.0,72903.0,0.17829536]
[1773616207290,0.06856023,72929.0,72903.0,0.17829536]
[1773616208335,0.42345481,72937.0,72903.0,0.17829536]
[1773616208336,0.06854143,72949.0,72919.0,0.16898883]
[1773616208464,0.0002,72944.0,72920.0,0.0014]
[1773616208663,0.0002,72944.0,72920.0,0.16565204]
[1773616209256,0.0014,72949.0,72921.0,0.16339504]
[1773616209257,0.06859255,72948.0,72921.0,0.16339504]
[1773616209517,0.06859255,72948.0,72921.0,0.16374828]
[1773616209714,0.00025,72952.0,72930.0,0.16898883]
[1773616210039,0.00025,72952.0,72921.0,0.16374828]
[1773616210040,0.06853915,72951.0,72931.0,0.2760666]
[1773616210249,0.06853915,72951.0,72933.0,0.06855607]
[1773616210569,0.0687888,72952.0,72934.0,0.0014]
[1773616210948,0.00025,72952.0,72934.0,0.0014]
[1773616211160,0.06878886,72952.0,72934.0,0.0014]
[1773616211755,0.00025,72952.0,72934.0,0.0014]
[1773616212164,0.06853604,72955.0,72934.0,0.0014]
[1773616212165,0.06853037,72961.0,72940.0,0.16898883]
[1773616212346,0.06853019,72961.0,72941.0,0.06854855]
[1773616212692,0.06853027,72961.0,72941.0,0.06854855]
[1773616212837,0.0002,72962.0,72941.0,0.06854855]
[1773616213037,0.06872935,72962.0,72941.0,0.06854855]
[1773616214053,0.06853012,72961.0,72942.0,0.0014]
[1773616214577,0.06872935,72962.0,72943.0,0.06854667]
[1773616214793,0.0002,72962.0,72943.0,0.06854667]
[1773616215001,0.06872929,72962.0,72943.0,0.06854667]
[1773616215197,0.0002,72962.0,72943.0,0.06854667]
[1773616215754,0.00030595,72962.0,72943.0,0.06822522]
[1773616215901,5e-05,72963.0,72943.0,0.06822522]
[1773616216101,0.06877675,72965.0,72943.0,0.2307396]
[1773616216441,0.00025,72965.0,72943.0,0.2307396]
[1773616217154,0.00025,72965.0,72944.0,0.1621648]
[1773616217796,0.0002,72959.0,72944.0,0.1621648]
[1773616218633,5e-05,72966.0,72945.0,0.06854479]
[1773616218863,0.00165,72980.0,72951.0,0.16166253]
[1773616219062,0.00025,72980.0,72960.0,0.16880754]
[1773616219292,0.00025,72980.0,72961.0,0.36365125]
[1773616219499,0.00025,72980.0,72962.0,0.0014]
[1773616219912,0.0001,72981.0,72962.0,0.0014]
[1773616220135,5e-05,72983.0,72962.0,0.0014]
[1773616220351,5e-05,72983.0,72963.0,0.0014]
[1773616220773,0.0002,72990.0,72971.0,0.06852037]
[1773616220995,0.0002,72990.0,72972.0,0.0014]
[1773616221447,5e-05,72992.0,72972.0,0.0014]
[1773616221657,5e-05,72992.0,72972.0,0.16252672]
[1773616221852,0.00015611,72992.0,72972.0,0.16252672]
[1773616222695,0.32863845,73029.0,72972.0,0.16252672]
[1773616222696,0.06852794,73017.0,72989.0,0.06850347]
[1773616222922,0.06888149,73017.0,72990.0,0.1623554]
[1773616223147,0.24738992,73017.0,72989.0,0.06850347]
[1773616223301,0.17850843,73016.0,72989.0,0.06850347]
[1773616223505,0.17850843,73014.0,72990.0,0.0014]
[1773616224104,0.17850843,73014.0,72991.0,0.0014]
[1773616224686,0.06848001,73014.0,72978.0,0.06851098]
[1773616224951,0.17850843,73013.0,72981.0,0.06991098]
[1773616225085,0.06848001,73014.0,72982.0,0.16112877]
[1773616225289,0.06848001,73014.0,72983.0,0.0014]
[1773616225627,0.06848001,73014.0,72982.0,0.16112877]
[1773616225628,0.06868001,73014.0,72982.0,0.16112877]
[1773616225989,0.17850843,73013.0,72983.0,0.0014]
[1773616226193,0.17850843,73013.0,72984.0,0.0014]
[1773616226397,0.17850843,73013.0,72981.0,0.06851098]
[1773616226603,0.0014,73012.0,72985.0,0.0014]
[1773616226917,0.0014,73012.0,72970.0,0.16896829]
[1773616226918,0.17850843,73009.0,72970.0,0.16896829]
[1773616227118,0.06848283,73011.0,72980.0,0.16896829]
[1773616227288,0.06848283,73011.0,72981.0,0.0014]
[1773616227506,0.06848283,73011.0,72982.0,0.0014]
[1773616228359,0.06848283,73011.0,72983.0,0.0014]
[1773616228591,0.06848283,73011.0,72984.0,0.0014]
[1773616228794,0.06848283,73011.0,72985.0,0.06850722]
[1773616229583,0.06848283,73011.0,72986.0,0.0014]
[1773616231149,0.06848283,73011.0,72984.0,0.06850722]
[1773616231351,0.17850843,73010.0,72982.0,0.06850722]
[1773616231558,0.17850843,73010.0,72983.0,0.0014]
[1773616231753,0.17850843,73010.0,72984.0,0.0014]
[1773616231975,0.17850843,73010.0,72982.0,0.06850722]
[1773616232219,0.17850843,73010.0,72983.0,0.0014]
[1773616232413,0.17850843,73008.0,72982.0,0.06850722]
[1773616232617,0.17850843,73008.0,72983.0,0.0014]
[1773616233246,0.06848658,73007.0,72984.0,0.06850816]
[1773616233447,0.17850843,73006.0,72984.0,0.06850816]
[1773616234135,0.16896829,73000.0,72960.0,5e-05]
[1773616234335,0.16896829,73000.0,72965.0,0.0685754]
[1773616234336,0.17850843,72999.0,72965.0,0.0685754]
[1773616234567,0.06848658,73007.0,72965.0,0.0685754]
[1773616234568,0.17850843,72997.0,72965.0,0.0685754]
[1773616234706,0.17850843,72995.0,72965.0,0.0685754]
[1773616234911,0.17850843,72993.0,72965.0,0.0685754]
[1773616235109,0.17850843,72993.0,72965.0,0.0685254]
[1773616235340,0.06850065,72992.0,72967.0,0.06852412]
[1773616235538,0.17850843,72991.0,72960.0,0.06858039]
[1773616235761,0.17850843,72991.0,72961.0,0.0014]
[1773616236125,0.17850843,72988.0,72955.0,5e-05]
[1773616236328,0.30638,72985.0,72956.0,0.0014]
[1773616236546,0.17990843,72984.0,72956.0,0.0014]
[1773616236975,0.17850843,72984.0,72956.0,0.0014]
[1773616237279,0.17850843,72984.0,72955.0,0.06853493]
[1773616237457,0.17850843,72981.0,72958.0,0.06853258]
[1773616237857,0.17990843,72981.0,72958.0,0.06853258]
[1773616238263,0.17990843,72981.0,72959.0,0.0014]
[1773616239384,0.17990843,72981.0,72960.0,0.0685307]
[1773616239385,0.06851192,72980.0,72960.0,0.0685307]
[1773616239658,0.24842035,72981.0,72960.0,0.0685307]
[1773616239659,0.21693227,72981.0,72960.0,0.0685307]
[1773616239858,0.06850535,72987.0,72960.0,0.0685307]
[1773616239983,0.06850535,72987.0,72961.0,0.34588971]
[1773616240188,0.17850843,72986.0,72962.0,0.0014]
[1773616240390,0.001,72981.0,72963.0,0.0014]
[1773616240601,0.17850843,72986.0,72963.0,0.0014]
[1773616241000,0.39403095,72986.0,72961.0,0.00022]
[1773616241206,0.06850535,72987.0,72962.0,0.34724817]
[1773616241423,0.00010603,72988.0,72963.0,0.06852788]
[1773616241626,5e-05,72990.0,72964.0,0.17276404]
[1773616241942,0.06848252,73012.0,72964.0,0.17276404]
[1773616241943,0.17850843,72998.0,72965.0,0.0014]
[1773616242149,0.17990843,72998.0,72966.0,0.0014]
[1773616242339,0.17990843,72998.0,72967.0,0.0014]
[1773616242695,0.17990843,72998.0,72964.0,0.01101411]
[1773616242890,0.17990843,72998.0,72965.0,0.0014]
[1773616243471,0.06849596,72997.0,72966.0,0.06852506]
[1773616243605,0.24509,72996.0,72964.0,0.01201411]
[1773616243947,0.17850843,72993.0,72965.0,0.068526]
[1773616244098,0.06849596,72997.0,72965.0,0.24269004]
[1773616244297,0.06849596,72997.0,72966.0,0.17276404]
[1773616244744,0.001,72996.0,72966.0,0.17276404]
[1773616244922,0.06949596,72997.0,72966.0,0.17276404]
[1773616245127,0.06949596,72997.0,72965.0,0.069926]
[1773616245128,0.06949596,72997.0,72967.0,0.0014]
[1773616245531,0.001,72997.0,72969.0,0.17276404]
[1773616245753,0.0684969,72996.0,72969.0,0.17276404]
[1773616246139,0.0684969,72996.0,72968.0,0.06852318]
[1773616246140,0.06849033,73003.0,72970.0,0.16896829]
[1773616246349,0.06849033,73003.0,72971.0,0.17276404]
[1773616246717,0.06849033,73003.0,72972.0,0.0014]
[1773616246922,0.06849033,73003.0,72972.0,0.17416404]
[1773616247123,0.06849033,73003.0,72973.0,0.0014]
[1773616247535,0.06849033,73003.0,72974.0,0.06851755]
[1773616248186,0.18377015,73002.0,72974.0,0.06851755]
[1773616248385,0.18377015,73002.0,72975.0,0.0014]
[1773616248587,0.18377015,73002.0,72974.0,0.06851755]
[1773616248588,0.18377015,73002.0,72976.0,0.0014]
[1773616248991,0.18377015,73002.0,72977.0,0.0014]
[1773616249196,0.06849033,73004.0,72977.0,0.0014]
[1773616249501,0.18377015,73003.0,72978.0,0.0014]
[1773616249654,0.18377015,73001.0,72965.0,0.068576]
[1773616249856,0.18377015,73001.0,72966.0,0.0014]
[1773616250059,0.18377015,73001.0,72973.0,0.00022]
[1773616250270,0.18377015,73001.0,72974.0,0.001]
[1773616250480,0.18377015,73001.0,72975.0,0.0014]
[1773616250687,0.06989127,73002.0,72975.0,0.0014]
[1773616250688,0.0014,73002.0,72975.0,0.0014]
[1773616251106,0.06849127,73003.0,72975.0,0.0014]
[1773616251301,0.06849127,73003.0,72976.0,0.0014]
[1773616251996,0.18377015,73003.0,72977.0,0.06851473]
[1773616252195,0.18377015,72999.0,72970.0,0.0014]
[1773616252403,0.18377015,72997.0,72970.0,0.0014]
[1773616252692,0.18377015,72997.0,72965.0,0.06879529]
[1773616253100,0.18377015,72997.0,72966.0,0.0014]
[1773616253305,0.18377015,72997.0,72965.0,0.06879529]
[1773616253506,0.18377015,72997.0,72966.0,0.0014]
[1773616253715,0.18377015,72997.0,72965.0,0.06879529]
[1773616253920,0.0014,72998.0,72964.0,0.01101411]
[1773616253921,0.18377015,72987.0,72964.0,0.01101411]
[1773616254116,0.17701713,72985.0,72964.0,0.01101411]
[1773616254329,0.17701713,72985.0,72961.0,0.00022]
[1773616254533,0.16896829,72980.0,72955.0,5e-05]
[1773616254782,0.16896829,72980.0,72945.0,0.00145]
[1773616254783,0.17841713,72979.0,72948.0,0.06859181]
[1773616254988,0.17841713,72979.0,72948.0,5e-05]
[1773616256085,0.17701713,72977.0,72948.0,0.06859175]
[1773616256507,0.17701713,72977.0,72948.0,5e-05]
[1773616257492,0.17801713,72977.0,72948.0,5e-05]
[1773616257799,0.17701713,72977.0,72948.0,5e-05]
[1773616258203,0.17701713,72975.0,72948.0,5e-05]
[1773616259194,0.17701713,72975.0,72942.0,0.06994714]
[1773616259195,0.17701713,72969.0,72925.0,5e-05]
[1773616259395,0.17701713,72958.0,72935.0,0.06872378]
[1773616259595,0.17701713,72956.0,72935.0,0.0687238]
[1773616260147,0.17701713,72954.0,72935.0,0.00012]
[1773616260372,0.17701713,72954.0,72938.0,0.00022]
[1773616260656,0.17701713,72954.0,72935.0,0.00012]
[1773616260859,0.06852715,72964.0,72936.0,0.26939827]
[1773616261071,5e-05,72992.0,72937.0,0.16115523]
[1773616261072,0.0014,72967.0,72937.0,0.16115523]
[1773616261275,0.17701713,72973.0,72937.0,0.16115523]
[1773616261276,0.0014,72966.0,72937.0,0.16115523]
[1773616262014,0.06851192,72980.0,72942.0,1.950046]
[1773616262211,0.0014,72979.0,72946.0,0.290311]
[1773616262363,0.06851192,72980.0,72947.0,0.16145371]
[1773616262575,0.06851192,72981.0,72947.0,0.16145371]
[1773616262932,0.0014,72987.0,72961.0,0.3383386]
[1773616263137,0.06850441,72988.0,72961.0,0.3383386]
[1773616263386,0.17701713,72985.0,72956.0,0.0014]
[1773616263533,0.17701713,72985.0,72953.0,0.0014]
[1773616264107,0.17701713,72985.0,72951.0,0.06853727]
[1773616264108,0.17701713,72983.0,72951.0,0.06853727]
[1773616264310,0.17701713,72983.0,72947.0,0.06854269]
[1773616264513,0.17701713,72979.0,72947.0,0.06854269]
[1773616265463,0.17701713,72979.0,72945.0,0.04830371]
[1773616265668,0.17701713,72979.0,72946.0,0.06854385]
[1773616265837,0.17701713,72979.0,72944.0,0.06854385]
[1773616266236,0.17701713,72977.0,72940.0,5e-05]
[1773616266682,0.17701713,72977.0,72939.0,0.06855032]
[1773616266884,0.17701713,72977.0,72939.0,0.0014]
[1773616267086,0.06851379,72978.0,72935.0,0.00017]
[1773616267087,0.17701713,72969.0,72935.0,0.00017]
[1773616267286,0.17701713,72958.0,72921.0,0.0014]
[1773616267458,0.17701713,72958.0,72928.0,0.00012]
[1773616267664,0.17701713,72958.0,72928.0,0.06868037]
[1773616267872,0.17701713,72958.0,72928.0,0.00012]
[1773616268078,0.06853445,72956.0,72928.0,0.00012]
[1773616268272,0.17701713,72955.0,72932.0,0.00022]
[1773616268478,0.1771231,72955.0,72932.0,0.00022]
[1773616269717,0.17701713,72953.0,72919.0,0.0014]
[1773616270117,0.17701713,72953.0,72920.0,0.06856829]
[1773616270118,0.06854009,72950.0,72920.0,0.06856829]
[1773616270316,0.17701713,72949.0,72920.0,0.06856829]
[1773616270700,0.06854009,72950.0,72920.0,0.06856829]
[1773616271739,0.06864169,72955.0,72931.0,0.26940666]
[1773616271940,5e-05,72983.0,72941.0,0.150311]
[1773616271941,0.06996844,72974.0,72941.0,0.150311]
[1773616272141,0.06996849,72974.0,72943.0,0.06854667]
[1773616272339,0.06851849,72973.0,72944.0,0.0014]
[1773616273491,0.06851849,72973.0,72944.0,0.0024]
[1773616273621,0.06851849,72973.0,72944.0,0.0014]
[1773616274213,0.24553562,72973.0,72945.0,0.06854479]
[1773616274412,0.24553562,72973.0,72946.0,0.0014]
[1773616275287,0.06851849,72973.0,72946.0,0.0014]
[1773616275480,0.06856849,72974.0,72947.0,0.15857738]
[1773616276234,5e-05,72974.0,72948.0,0.06854197]
[1773616276788,5e-05,72974.0,72949.0,0.0014]
[1773616277560,5e-05,72974.0,72950.0,0.0014]
[1773616278100,0.17701713,72973.0,72948.0,0.06954197]
[1773616278504,0.06991943,72972.0,72949.0,0.0014]
[1773616278725,0.17701713,72971.0,72949.0,0.0014]
[1773616278928,0.17701713,72971.0,72915.0,5e-05]
[1773616279129,0.17701713,72969.0,72932.0,0.0014]
[1773616279353,0.17712322,72969.0,72915.0,5e-05]
[1773616279509,0.17712322,72969.0,72929.0,0.06877963]
[1773616280237,0.17712322,72969.0,72932.0,0.001]
[1773616280643,0.17701713,72967.0,72929.0,0.06877963]
[1773616281483,0.17701713,72967.0,72931.0,0.47357779]
[1773616281484,0.0014,72966.0,72931.0,0.47357779]
[1773616281708,0.0014,72966.0,72933.0,0.1564776]
[1773616281861,0.0014,72968.0,72941.0,0.174742]
[1773616282062,0.0014,72968.0,72942.0,0.0014]
[1773616282274,0.0014,72968.0,72942.0,0.15749354]
[1773616282491,0.07062879,72969.0,72942.0,0.15749354]
[1773616282688,0.07062879,72969.0,72943.0,0.06854667]
[1773616283475,0.00010609,72969.0,72944.0,0.15574871]
[1773616283697,0.06851527,72977.0,72951.0,0.15574871]
[1773616283904,0.06851527,72977.0,72951.0,0.1558548]
[1773616284118,0.06851527,72977.0,72952.0,0.15680509]
[1773616284332,0.06871206,72980.0,72952.0,0.15680509]
[1773616284534,0.17787534,72982.0,72961.0,0.32845413]
[1773616284535,0.06871047,72982.0,72961.0,0.32845413]